fUST/lending_fUST_20250930
["ID","MTS","AMOUNT","RATE_DAILY","PERIOD"]
[388428913,1759166186512,-1394.03,0.00023434,2]
[388428914,1759166186542,-314.91773822,0.00023435,2]
[388428915,1759166186569,-1390.86,0.00023435,2]
[388428916,1759166186597,-480.0,0.00023435,2]
[388428917,1759166186629,-594.6,0.00023435,2]
[388428918,1759166186657,-580.51,0.00023435,2]
[388428919,1759166186869,-218.92,0.00023435,2]
[388428920,1759166186886,-425.05,0.00023435,2]
[388428921,1759166186895,-169.55,0.00023435,2]
[388428922,1759166186910,-580.51,0.00023435,2]
[388428923,1759166186928,-485.32,0.00023435,2]
[388428924,1759166186937,-4.85452356,0.00023435,2]
[388428925,1759166195944,-480.0,0.00023431,2]
[388428926,1759166195976,-1110.22,0.00023433,2]
[388428927,1759166196005,-2065.34,0.00023433,2]
[388428928,1759166196033,-480.0,0.00023434,2]
[388428929,1759166196061,-537.75,0.00023434,2]
[388428930,1759166196090,-159.42,0.00023434,2]
[388428931,1759166196200,-334.55,0.00023434,2]
[388428932,1759166196237,-561.58547644,0.00023435,2]
[388428933,1759166196268,-480.0,0.00023435,2]
[388428934,1759166196297,-480.0,0.00023435,2]
[388428935,1759166196326,-480.0,0.00023435,2]
[388428936,1759166196356,-480.0,0.00023435,2]
[388428937,1759166196401,-749.52,0.00023435,2]
[388428938,1759166196433,-480.0,0.00023435,2]
[388428939,1759166196461,-480.0,0.00023435,2]
[388428940,1759166196490,-480.0,0.00023435,2]
[388428941,1759166196520,-177.79904712,0.00023435,2]
[388428942,1759166197045,-302.20095288,0.00023435,2]
[388428943,1759166215993,-802.54,0.00023431,2]
[388428944,1759166216021,-518.76,0.00023431,2]
[388428945,1759166216049,-1832.31,0.00023432,2]
[388428946,1759166216102,-3692.79,0.00023432,2]
[388428947,1759166216138,-4881.97,0.00023433,2]
[388428948,1759166216196,-236.07,0.00023433,2]
[388428949,1759166216284,-404.88,0.00023433,2]
[388428950,1759166216314,-480.0,0.00023434,2]
[388428951,1759166216342,-480.0,0.00023434,2]
[388428952,1759166216371,-500.13,0.00023434,2]
[388428953,1759166216399,-480.0,0.00023434,2]
[388428954,1759166216426,-561.23,0.00023434,2]
[388428955,1759166216452,-833.37,0.00023434,2]
[388428956,1759166216479,-480.0,0.00023434,2]
[388428957,1759166216508,-480.0,0.00023434,2]
[388428958,1759166216689,-600.79,0.00023434,2]
[388428959,1759166226111,-480.0,0.00023431,2]
[388428960,1759166226142,-480.0,0.00023431,2]
[388428961,1759166226170,-1313.63,0.00023432,2]
[388428962,1759166226197,-2257.91,0.00023433,2]
[388428963,1759166226225,-300.0,0.00023433,2]
[388428964,1759166226374,-336.93,0.00023433,2]
[388428965,1759166226427,-1980.68,0.00023433,2]
[388428966,1759166226456,-231.29,0.00023434,2]
[388428967,1759166226485,-507.26,0.00023434,2]
[388428968,1759166226513,-480.0,0.00023434,2]
[388428969,1759166226541,-480.0,0.00023434,2]
[388428970,1759166226569,-480.0,0.00023434,2]
[388428971,1759166226597,-480.0,0.00023434,2]
[388428972,1759166226720,-3368.12,0.00023434,2]
[388428973,1759166226749,-1503.75,0.00023434,2]
[388428974,1759166226934,-480.0,0.00023433,2]
[388428975,1759166226943,-256.27,0.00023434,2]
[388428976,1759166226953,-241.55,0.00023434,2]
[388428977,1759166235976,-480.0,0.00023431,2]
[388428978,1759166236006,-798.55,0.00023431,2]
[388428979,1759166236035,-238.45,0.00023434,2]
[388428980,1759166236063,-508.9,0.00023434,2]
[388428981,1759166236092,-595.61,0.00023434,2]
[388428982,1759166236120,-1376.16,0.00023434,2]
[388428983,1759166236150,-535.08,0.00023434,2]
[388428984,1759166236178,-454.51,0.00023434,2]
[388428985,1759166236311,-25.49,0.00023434,2]
[388428986,1759166236342,-594.87,0.00023435,2]
[388428987,1759166236371,-1135.57,0.00023435,2]
[388428988,1759166236404,-711.22,0.00023435,2]
[388428989,1759166236432,-480.0,0.00023435,2]
[388428990,1759166236461,-480.0,0.00023435,2]
[388428991,1759166236489,-480.0,0.00023435,2]
[388428992,1759166236516,-912.29,0.00023435,2]
[388428993,1759166236593,-480.0,0.00023435,2]
[388428994,1759166236620,-480.0,0.00023435,2]
[388428995,1759166236650,-480.0,0.00023435,2]
[388428996,1759166236678,-480.0,0.00023435,2]
[388428997,1759166236705,-480.0,0.00023435,2]
[388428998,1759166236734,-534.05,0.00023435,2]
[388428999,1759166236762,-480.0,0.00023435,2]
[388429000,1759166236789,-480.0,0.00023435,2]
[388429001,1759166236816,-480.0,0.00023435,2]
[388429002,1759166236844,-480.0,0.00023435,2]
[388429003,1759166237073,-773.94,0.00023435,2]
[388429004,1759166237101,-480.0,0.00023435,2]
[388429005,1759166237128,-1934.2,0.00023435,2]
[388429006,1759166237159,-480.0,0.00023435,2]
[388429007,1759166237186,-480.0,0.00023435,2]
[388429008,1759166237215,-480.0,0.00023435,2]
[388429009,1759166237242,-263.73,0.00023435,2]
[388429010,1759166238082,-480.0,0.00023433,2]
[388429011,1759166238096,-97.37,0.00023433,2]
[388429012,1759166238106,-382.63,0.00023433,2]
[388429013,1759166246036,-1147.82,0.00023431,2]
[388429014,1759166246064,-97.37,0.00023433,2]
[388429015,1759166246091,-1200.0,0.00023433,2]
[388429016,1759166246117,-480.0,0.00023434,2]
[388429017,1759166246144,-480.0,0.00023434,2]
[388429018,1759166246170,-480.0,0.00023434,2]
[388429019,1759166246197,-216.27,0.00023435,2]
[388429020,1759166246224,-797.09,0.00023435,2]
[388429021,1759166246331,-202.91,0.00023435,2]
[388429022,1759166246358,-1000.0,0.00023435,2]
[388429023,1759166246385,-1000.0,0.00023435,2]
[388429024,1759166246412,-480.0,0.00023435,2]
[388429025,1759166246442,-169.48758835,0.00023435,2]
[388429026,1759166246468,-529.02,0.00023435,2]
[388429027,1759166246494,-480.0,0.00023435,2]
[388429028,1759166246523,-480.0,0.00023435,2]
[388429029,1759166246550,-480.0,0.00023435,2]
[388429030,1759166246798,-211.93,0.00023434,2]
[388429031,1759166246816,-357.1748233,0.00023434,2]
[388429032,1759166256122,-480.0,0.00023431,2]
[388429033,1759166256151,-4298.42,0.00023433,2]
[388429034,1759166256191,-443.17,0.00023433,2]
[388429035,1759166256260,-598.8051767,0.00023434,2]
[388429036,1759166256288,-480.0,0.00023434,2]
[388429037,1759166256314,-480.0,0.00023434,2]
[388429038,1759166256347,-1880.14,0.00023434,2]
[388429039,1759166256376,-480.0,0.00023435,2]
[388429040,1759166256405,-480.0,0.00023435,2]
[388429041,1759166256434,-480.0,0.00023435,2]
[388429042,1759166256560,-586.7507266,0.00023435,2]
[388429043,1759166256587,-480.0,0.00023435,2]
[388429044,1759166256614,-480.0,0.00023435,2]
[388429045,1759166256641,-480.0,0.00023435,2]
[388429046,1759166256854,-242.1196466,0.00023435,2]
[388429047,1759166256877,-5946.5085468,0.00023435,2]
[388429048,1759166256914,-8115.0743786,0.00023435,2]
[388429049,1759166256924,-600.1576491,0.000235,2]
[388429050,1759166256934,-500.0,0.000235,2]
[388429051,1759166256943,-761.02721682,0.00023609,2]
[388429052,1759166266183,-1076.88,0.00023433,2]
[388429053,1759166267756,480.0,0.00023431,2]
[388429054,1759166270412,2783.4,0.00023433,2]
[388429055,1759166276352,480.0,0.00023431,2]
[388429056,1759166280390,-480.0,0.00023434,2]
[388429057,1759166282038,-190.70646133,0.00023434,2]
[388429058,1759166282649,300.0,0.00023433,2]
[388429059,1759166283569,-300.0,0.00023434,2]
[388429060,1759166284554,492.25,0.00023431,2]
[388429061,1759166285854,681.35,0.00023433,2]
[388429062,1759166287502,-63.89353867,0.00023434,2]
[388429063,1759166287525,-88.10646133,0.00023434,2]
[388429064,1759166291312,-300.0,0.00023434,2]
[388429065,1759166292878,-91.89353867,0.00023434,2]
[388429066,1759166292899,-432.91935103,0.00023434,2]
[388429067,1759166294392,376.00654605,0.00023334,2]
[388429068,1759166295114,-47.08064897,0.00023434,2]
[388429069,1759166295137,-177.3254538,0.00023434,2]
[388429070,1759166297215,-270.35204766,0.00023434,2]
[388429071,1759166299948,-62.63249854,0.00023434,2]
[388429072,1759166299970,-159.92525298,0.00023434,2]
[388429073,1759166303971,-259.70287763,0.00023434,2]
[388429074,1759166304544,619.1,0.00023431,2]
[388429075,1759166305692,-60.37186939,0.00023434,2]
[388429076,1759166305715,-236.07597477,0.00023434,2]
[388429077,1759166307229,-300.0,0.00023434,2]
[388429078,1759166309114,-300.0,0.00023434,2]
[388429079,1759166313217,-158.65792602,0.00023434,2]
[388429080,1759166314734,197.10785413,0.00023431,2]
[388429081,1759166316148,-489.92513588,0.00023434,2]
[388429082,1759166316872,480.0,0.00023431,2]
[388429083,1759166319767,-236.54838973,0.00023434,2]
[388429084,1759166321867,-283.64297704,0.00023434,2]
[388429085,1759166322723,505.99,0.00023431,2]
[388429086,1759166323652,451.04559982,0.00023433,2]
[388429087,1759166323674,5104.78440018,0.00023433,2]
[388429088,1759166323771,-1023.76387337,0.00023434,2]
[388429089,1759166326443,-189.3309625,0.00023434,2]
[388429090,1759166327036,639.23,0.00023431,2]
[388429091,1759166327853,201.04,0.0002343,10]
[388429092,1759166328016,-388.90476069,0.00023434,2]
[388429093,1759166328039,-140.59626584,0.00023434,2]
[388429094,1759166329561,-173.9715,0.00023434,2]
[388429095,1759166332856,-195.06351473,0.00023434,2]
[388429096,1759166335289,-56.84871943,0.00023434,2]
[388429097,1759166335311,-163.33869558,0.00023434,2]
[388429098,1759166337474,-276.95595076,0.00023434,2]
[388429099,1759166338431,246.65,0.0002343,10]
[388429100,1759166339226,761.06,0.00023431,2]
[388429101,1759166339674,-39.70535366,0.00023434,2]
[388429102,1759166339695,-382.69795564,0.00023434,2]
[388429103,1759166341770,-97.30204436,0.00023434,2]
[388429104,1759166341791,-451.67574219,0.00023434,2]
[388429105,1759166342117,1258.89,0.00023433,2]
[388429106,1759166342577,300.0,0.00023433,2]
[388429107,1759166344142,-170.67103699,0.00023434,2]
[388429108,1759166347001,-300.0,0.00023434,2]
[388429109,1759166347089,480.0,0.00023431,2]
[388429110,1759166349236,-470.15969844,0.00023434,2]
[388429111,1759166349789,486.03985643,0.00023431,2]
[388429112,1759166350791,-243.56662982,0.00023434,2]
[388429113,1759166351991,205.54,0.0002343,10]
[388429114,1759166352034,316.77574339,0.00023431,2]
[388429115,1759166352057,301.32425661,0.00023431,2]
[388429116,1759166353197,-253.66710568,0.00023434,2]
[388429117,1759166358312,847.35,0.00023431,2]
[388429118,1759166364448,171.29,0.0002343,10]
[388429119,1759166366086,516.84,0.00023431,2]
[388429120,1759166366720,482.02214587,0.00023431,2]
[388429121,1759166370367,-158.45680292,0.00023434,2]
[388429122,1759166376132,788.3,0.00023431,2]
[388429123,1759166377089,-9046.64359752,0.00023434,2]
[388429124,1759166377104,-10000.01,0.00023434,2]
[388429125,1759166377134,-10000.01,0.00023434,2]
[388429126,1759166377316,-10000.01,0.00023434,2]
[388429127,1759166377477,-472.53383438,0.00023434,2]
[388429128,1759166377503,-9054.94233124,0.00023434,2]
[388429129,1759166377614,-160.0,0.00023434,2]
[388429130,1759166377644,-263.41322082,0.00023434,2]
[388429131,1759166377683,-480.0,0.00023434,2]
[388429132,1759166377718,-480.0,0.00023434,2]
[388429133,1759166377865,-1453.42,0.00023434,2]
[388429134,1759166377890,-5779.76355836,0.00023434,2]
[388429135,1759166377908,-1313.40644164,0.00023434,2]
[388429136,1759166377917,-480.0,0.00023434,2]
[388429137,1759166377929,-591.61,0.00023434,2]
[388429138,1759166377940,-480.0,0.00023434,2]
[388429139,1759166377950,-480.0,0.00023434,2]
[388429140,1759166377961,-480.0,0.00023434,2]
[388429141,1759166377972,-2290.39,0.00023434,2]
[388429142,1759166377982,-480.0,0.00023434,2]
[388429143,1759166377992,-480.0,0.00023434,2]
[388429144,1759166378002,-480.0,0.00023434,2]
[388429145,1759166378015,-480.0,0.00023434,2]
[388429146,1759166378024,-511.18355836,0.00023434,2]
[388429147,1759166378412,856.45,0.0002343,10]
[388429148,1759166382345,206.8266531,0.00022558,2]
[388429149,1759166386175,-480.0,0.00023431,2]
[388429150,1759166386202,-420.58644164,0.00023434,2]
[388429151,1759166386230,-2463.61,0.00023434,2]
[388429152,1759166386257,-480.0,0.00023434,2]
[388429153,1759166386286,-480.0,0.00023434,2]
[388429154,1759166386424,-1762.02,0.00023434,2]
[388429155,1759166386451,-739.79,0.00023434,2]
[388429156,1759166386479,-896.87,0.00023434,2]
[388429157,1759166386507,-480.0,0.00023434,2]
[388429158,1759166386619,-2857.18,0.00023434,2]
[388429159,1759166386647,-635.44,0.00023434,2]
[388429160,1759166386674,-480.0,0.00023434,2]
[388429161,1759166386702,-480.0,0.00023434,2]
[388429162,1759166386732,-480.0,0.00023434,2]
[388429163,1759166387100,-662.37711672,0.00023434,2]
[388429164,1759166387123,-635.44,0.00023434,2]
[388429165,1759166387138,-480.0,0.00023434,2]
[388429166,1759166387157,-342.08288328,0.00023434,2]
[388429167,1759166387167,-137.91711672,0.00023434,2]
[388429168,1759166387181,-342.08288328,0.00023434,2]
[388429169,1759166387190,-137.91711672,0.00023434,2]
[388429170,1759166387208,-134.77,0.00023434,2]
[388429171,1759166396217,-207.31288328,0.00023434,2]
[388429172,1759166396246,-480.0,0.00023434,2]
[388429173,1759166396278,-1570.67,0.00023434,2]
[388429174,1759166396308,-480.0,0.00023434,2]
[388429175,1759166396336,-480.0,0.00023434,2]
[388429176,1759166396363,-569.33,0.00023434,2]
[388429177,1759166396393,-480.0,0.00023434,2]
[388429178,1759166396421,-500.0,0.00023434,2]
[388429179,1759166396626,-940.25,0.00023434,2]
[388429180,1759166396653,-480.0,0.00023434,2]
[388429181,1759166396680,-480.0,0.00023434,2]
[388429182,1759166396706,-950.57,0.00023434,2]
[388429183,1759166396732,-480.0,0.00023434,2]
[388429184,1759166396759,-1006.63,0.00023434,2]
[388429185,1759166396785,-480.0,0.00023434,2]
[388429186,1759166396884,-480.0,0.00023434,2]
[388429187,1759166396910,-553.65,0.00023434,2]
[388429188,1759166396940,-1199.03,0.00023434,2]
[388429189,1759166396968,-480.0,0.00023434,2]
[388429190,1759166396996,-1095.54,0.00023434,2]
[388429191,1759166397026,-480.0,0.00023435,2]
[388429192,1759166397054,-480.0,0.00023435,2]
[388429193,1759166397159,-480.0,0.00023435,2]
[388429194,1759166397193,-272.78391467,0.00023435,2]
[388429195,1759166397221,-480.0,0.00023435,2]
[388429196,1759166397253,-318.58338537,0.00023435,2]
[388429197,1759166397284,-494.48,0.00023435,2]
[388429198,1759166397318,-482.26776614,0.00023435,2]
[388429199,1759166397348,-480.0,0.00023435,2]
[388429200,1759166397376,-480.0,0.00023435,2]
[388429201,1759166397405,-560.42,0.00023435,2]
[388429202,1759166397432,-480.0,0.00023435,2]
[388429203,1759166397459,-462.93986764,0.00023435,2]
[388429204,1759166397594,-486.28,0.00023434,2]
[388429205,1759166397635,-17.06013236,0.00023435,2]
[388429206,1759166397663,-500.0,0.00023435,2]
[388429207,1759166398465,-333.81423344,0.0002344,2]
[388429208,1759166398491,-245.48,0.0002344,2]
[388429209,1759166398597,-486.28,0.0002344,2]
[388429210,1759166398610,-17.06013236,0.0002344,2]
[388429211,1759166398624,-500.0,0.0002344,2]
[388429212,1759166398642,-7993.32973528,0.0002344,2]
[388429213,1759166398672,-10000.01,0.0002344,2]
[388429214,1759166398691,-10000.01,0.0002344,2]
[388429215,1759166398726,-469.70766939,0.00023431,2]
[388429216,1759166398735,-9530.30233061,0.0002344,2]
[388429217,1759166400103,-339.43481762,0.00023431,2]
[388429218,1759166403177,245.48,0.000234,2]
[388429219,1759166403209,339.43481762,0.000234,2]
[388429220,1759166414254,482.827817,0.00022699,2]
[388429221,1759166416241,-140.56518238,0.00023431,2]
[388429222,1759166416270,-1860.55,0.00023431,2]
[388429223,1759166416299,-492.54,0.00023434,2]
[388429224,1759166416328,-480.0,0.00023434,2]
[388429225,1759166416368,-408.69703234,0.00023434,2]
[388429226,1759166416427,-480.0,0.00023434,2]
[388429227,1759166416487,-480.0,0.00023434,2]
[388429228,1759166416550,-193.24557056,0.00023434,2]
[388429230,1759166416717,-928.81442944,0.00023434,2]
[388429231,1759166416744,-629.9,0.00023434,2]
[388429232,1759166416772,-480.0,0.00023434,2]
[388429233,1759166416799,-480.0,0.00023434,2]
[388429234,1759166416825,-480.0,0.00023434,2]
[388429235,1759166416852,-300.0,0.00023439,2]
[388429236,1759166416879,-300.0,0.00023439,2]
[388429237,1759166416906,-300.0,0.00023439,2]
[388429238,1759166416933,-1002.58114112,0.00023439,2]
[388429239,1759166417000,-197.41885888,0.00023439,2]
[388429240,1759166417025,-282.58114112,0.0002344,2]
[388429241,1759166417284,-1200.0,0.0002344,2]
[388429242,1759166417312,-10000.01,0.0002344,2]
[388429243,1759166417326,-10000.01,0.0002344,2]
[388429244,1759166417354,-10000.01,0.0002344,2]
[388429245,1759166417367,-10000.01,0.0002344,2]
[388429246,1759166418630,-597.66753696,0.00023434,2]
[388429247,1759166420158,-590.58,0.00023434,2]
[388429248,1759166422706,-895.83246304,0.00023434,2]
[388429249,1759166422731,-1024.73054007,0.00023434,2]
[388429250,1759166426278,-1304.56,0.00023431,2]
[388429251,1759166426307,-648.71945993,0.00023434,2]
[388429252,1759166426333,-480.0,0.00023434,2]
[388429253,1759166426361,-537.84,0.00023434,2]
[388429254,1759166426457,-4930.92,0.00023434,2]
[388429255,1759166426501,-480.0,0.00023435,2]
[388429256,1759166426511,-3577.77108014,0.0002344,2]
[388429257,1759166426524,-138.17,0.0002344,2]
[388429258,1759166434921,1915.06742182,0.000234,2]
[388429259,1759166436503,-1673.74311825,0.0002342,2]
[388429260,1759166436533,-480.0,0.00023431,2]
[388429261,1759166436564,-480.0,0.00023434,2]
[388429262,1759166436591,-480.0,0.00023434,2]
[388429263,1759166436620,-480.0,0.00023434,2]
[388429264,1759166436648,-480.0,0.00023434,2]
[388429265,1759166436675,-480.0,0.00023434,2]
[388429266,1759166436703,-95.1137635,0.00023434,2]
[388429267,1759166436753,-702.2962365,0.00023434,2]
[388429268,1759166436782,-500.0,0.00023439,2]
[388429269,1759166436812,-277.25765212,0.00023439,2]
[388429270,1759166436840,-500.0,0.00023439,2]
[388429271,1759166436867,-339.02397238,0.00023439,2]
[388429272,1759166436894,-500.0,0.00023439,2]
[388429273,1759166436922,-382.28901574,0.00023439,2]
[388429274,1759166437279,-363.27226412,0.0002344,2]
[388429275,1759166437292,-382.28901574,0.0002344,2]
[388429276,1759166437310,-3598.27624652,0.0002344,2]
[388429277,1759166437324,-10000.01,0.0002344,2]
[388429278,1759166437338,-10000.01,0.0002344,2]
[388429279,1759166437352,-1588.86554167,0.0002344,2]
[388429280,1759166446618,-2000.0,0.00023426,2]
[388429281,1759166446648,-2000.0,0.00023426,2]
[388429282,1759166451323,253.0,0.0002309,2]
[388429283,1759166461420,-282.58114112,0.00023431,2]
[388429284,1759166474989,184.1007185,0.00023,14]
[388429285,1759166477362,-197.41885888,0.0002343,2]
[388429287,1759166496084,-102.58114112,0.0002343,2]
[388429288,1759166496105,-94.83771776,0.00023431,2]
[388429289,1759166506698,-693.83114112,0.00023431,2]
[388429290,1759166506737,-480.0,0.00023431,2]
[388429291,1759166506770,-480.0,0.00023431,2]
[388429292,1759166506803,-500.0,0.00023431,2]
[388429293,1759166506836,-582.99,0.00023431,2]
[388429294,1759166506871,-480.0,0.00023431,2]
[388429295,1759166506904,-480.0,0.00023431,2]
[388429296,1759166506936,-480.0,0.00023431,2]
[388429297,1759166507249,-1984.89,0.00023431,2]
[388429298,1759166507281,-480.0,0.00023431,2]
[388429299,1759166507310,-807.25,0.00023431,2]
[388429300,1759166507338,-480.0,0.00023434,2]
[388429302,1759166507367,-650.4,0.00023434,2]
[388429303,1759166507708,-480.0,0.00023434,2]
[388429304,1759166507777,-2276.17,0.00023434,2]
[388429305,1759166507805,-502.21,0.00023434,2]
[388429306,1759166507832,-480.0,0.00023434,2]
[388429307,1759166507860,-480.0,0.00023434,2]
[388429308,1759166507888,-480.0,0.00023434,2]
[388429309,1759166507973,-1686.69,0.00023434,2]
[388429310,1759166508003,-480.0,0.00023434,2]
[388429311,1759166508032,-532.8572633,0.00023434,2]
[388429312,1759166508060,-480.0,0.00023434,2]
[388429313,1759166508091,-798.65,0.00023434,2]
[388429314,1759166508119,-531.84,0.00023434,2]
[388429315,1759166508538,-184.09973596,0.00023434,2]
[388429316,1759166508551,-480.0,0.00023434,2]
[388429317,1759166508564,-532.8572633,0.00023434,2]
[388429318,1759166508577,-480.0,0.00023434,2]
[388429319,1759166508591,-663.96300074,0.00023434,2]
[388429320,1759166508600,-134.68699926,0.00023434,2]
[388429321,1759166508618,-531.84,0.00023434,2]
[388429322,1759166508637,-610.99300074,0.00023434,2]
[388429323,1759166508647,-368.94247266,0.00023434,2]
[388429324,1759166526503,-480.0,0.00023431,2]
[388429325,1759166526532,-618.06,0.00023431,2]
[388429326,1759166526562,-704.07,0.00023431,2]
[388429327,1759166526590,-300.0,0.00023433,2]
[388429328,1759166526621,-111.05752734,0.00023434,2]
[388429329,1759166526650,-2345.85494532,0.00023434,2]
[388429330,1759166526775,-881.92505468,0.00023434,2]
[388429331,1759166526804,-480.0,0.00023434,2]
[388429332,1759166526832,-522.73,0.00023434,2]
[388429333,1759166526866,-582.34,0.00023434,2]
[388429334,1759166526900,-480.0,0.00023434,2]
[388429335,1759166527337,-401.92505468,0.00023434,2]
[388429336,1759166527356,-480.0,0.00023434,2]
[388429337,1759166527375,-4106.01989064,0.00023434,2]
[388429338,1759166536426,-250.41505468,0.00023434,2]
[388429339,1759166536456,-480.0,0.00023434,2]
[388429340,1759166536485,-480.0,0.00023434,2]
[388429341,1759166536512,-480.0,0.00023434,2]
[388429342,1759166536540,-1052.01,0.00023434,2]
[388429343,1759166536566,-480.0,0.00023434,2]
[388429344,1759166536593,-480.0,0.00023434,2]
[388429345,1759166536621,-1197.69989064,0.00023434,2]
[388429346,1759166537014,-199.76010936,0.00023434,2]
[388429347,1759166537041,-480.0,0.00023434,2]
[388429348,1759166537070,-480.0,0.00023434,2]
[388429349,1759166537097,-1262.46,0.00023434,2]
[388429350,1759166537124,-1953.71,0.00023434,2]
[388429351,1759166537217,-2782.86,0.00023434,2]
[388429352,1759166537244,-512.93,0.00023434,2]
[388429353,1759166537271,-1188.54,0.00023434,2]
[388429354,1759166537298,-480.0,0.00023434,2]
[388429355,1759166537552,-480.0,0.00023434,2]
[388429356,1759166537562,-487.90989064,0.00023434,2]
[388429357,1759166537579,-15.63010936,0.00023434,2]
[388429358,1759166537589,-464.36989064,0.00023434,2]
[388429359,1759166537608,-71.35,0.00023434,2]
[388429360,1759166546718,-480.0,0.00023431,2]
[388429361,1759166546747,-1200.0,0.00023433,2]
[388429362,1759166553430,480.0,0.00023431,2]
[388429363,1759166560489,480.0,0.00023431,2]
[388429364,1759166566487,633.1,0.00023431,2]
[388429365,1759166579915,480.0,0.00023431,2]
[388429366,1759166581147,2000.48,0.00023431,2]
[388429367,1759166583249,300.0,0.00023433,2]
[388429368,1759166585880,480.0,0.00023431,2]
[388429369,1759166589553,620.01,0.00023431,2]
[388429371,1759166592440,616.49,0.00023431,2]
[388429372,1759166604916,480.0,0.00023431,2]
[388429373,1759166609486,69.93,0.00023431,2]
[388429374,1759166609508,410.07,0.00023431,2]
[388429375,1759166614532,641.68,0.00023431,2]
[388429377,1759166623071,562.84,0.00023431,2]
[388429378,1759166633758,546.56,0.00023431,2]
[388429379,1759166635245,-157.71852885,0.00023434,2]
[388429381,1759166636132,552.64,0.00023431,2]
[388429382,1759166642361,300.0,0.00023433,2]
[388429383,1759166651947,3120.0,0.000233,2]
[388429384,1759166656200,157.71852885,0.00023433,2]
[388429385,1759166657924,480.0,0.00023431,2]
[388429386,1759166662757,480.0,0.00023431,2]
[388429387,1759166679439,617.14,0.00023431,2]
[388429388,1759166685755,-326.42169759,0.00023433,2]
[388429389,1759166688756,1183.91,0.00023431,2]
[388429391,1759166701993,326.42169759,0.00023433,2]
[388429392,1759166702370,300.0,0.00023432,2]
[388429393,1759166702444,300.0,0.00023432,2]
[388429394,1759166702631,21.02977356,0.00023432,2]
[388429395,1759166702654,1178.97022644,0.00023432,2]
[388429396,1759166702947,300.0,0.00023432,2]
[388429397,1759166705571,2115.83,0.00023431,2]
[388429398,1759166709136,480.0,0.00023431,2]
[388429400,1759166721508,570.08,0.00023431,2]
[388429401,1759166731054,808.54,0.00023424,10]
[388429402,1759166732162,556.32,0.00023431,2]
[388429403,1759166732635,681.59,0.00023431,2]
[388429404,1759166738380,480.0,0.00023433,2]
[388429405,1759166742865,480.0,0.00023431,2]
[388429406,1759166743388,752.79,0.00023424,10]
[388429407,1759166745997,542.84,0.00023431,2]
[388429408,1759166750979,322.84370101,0.00023431,2]
[388429409,1759166757699,480.0,0.00023431,2]
[388429410,1759166757872,250.20607255,0.00023431,2]
[388429411,1759166757894,229.79392745,0.00023431,2]
[388429412,1759166758401,480.0,0.00023433,2]
[388429415,1759166762654,300.0,0.00023432,2]
[388429416,1759166764107,1613.48,0.00023431,2]
[388429417,1759166767555,7376.73607255,0.00023433,2]
[388429418,1759166767579,10000.01,0.00023433,2]
[388429419,1759166767601,5797.77602481,0.00023433,2]
[388429420,1759166767836,161.86,0.00023424,10]
[388429421,1759166768494,385.03,0.00023424,3]
[388429422,1759166772961,481.09810968,0.00023433,2]